[Event "*** Titled Tuesday Blitz"]
[Site "Chess.com"]
[Date "2020.12.01"]
[Round "1"]
[White "Mambastik-Fantastic"]
[Black "Sashadav97"]
[Result "0-1"]
[WhiteElo "2307"]
[BlackElo "2628"]
[TimeControl "180+1"]
[EndTime "10:07:15 PST"]
[Termination "Sashadav97 won by resignation"]

1. e4 {[%clk 0:02:57.8]} 1... c5 {[%clk 0:02:58.8]} 2. Nf3 {[%clk 0:02:57.2]}
2... e6 {[%clk 0:02:51]} 3. d4 {[%clk 0:02:56.3]} 3... cxd4 {[%clk 0:02:51.9]}
4. Nxd4 {[%clk 0:02:55.3]} 4... Nf6 {[%clk 0:02:52]} 5. Nc3 {[%clk 0:02:54.4]}
5... Nc6 {[%clk 0:02:51.9]} 6. Ndb5 {[%clk 0:02:52.1]} 6... Bc5 {[%clk
0:02:51.3]} 7. Nd6+ {[%clk 0:02:40.7]} 7... Ke7 {[%clk 0:02:51]} 8. Nc4 {[%clk
0:02:29.4]} 8... d5 {[%clk 0:02:43.9]} 9. exd5 {[%clk 0:02:28.5]} 9... exd5
{[%clk 0:02:44.8]} 10. Qe2+ {[%clk 0:02:11.8]} 10... Be6 {[%clk 0:02:41.2]} 11.
Ne5 {[%clk 0:02:11.2]} 11... Re8 {[%clk 0:02:22.3]} 12. Nxc6+ {[%clk 0:01:45.6]}
12... bxc6 {[%clk 0:02:23.2]} 13. Bg5 {[%clk 0:01:41.6]} 13... Kf8 {[%clk
0:02:22.4]} 14. O-O-O {[%clk 0:01:41.5]} 14... Bg4 {[%clk 0:02:16.1]} 15. Bxf6
{[%clk 0:01:36.4]} 15... Bxe2 {[%clk 0:02:16.1]} 16. Bxd8 {[%clk 0:01:36.2]}
16... Bxd1 {[%clk 0:02:15.8]} 17. Bh4 {[%clk 0:01:23.6]} 17... Bh5 {[%clk
0:02:13.4]} 18. Ba6 {[%clk 0:01:20]} 18... Re6 {[%clk 0:02:08.3]} 19. a3 {[%clk
0:01:12.6]} 19... Rae8 {[%clk 0:02:06]} 20. b4 {[%clk 0:01:12.7]} 20... Bb6
{[%clk 0:02:02.5]} 21. Kd2 {[%clk 0:01:10.6]} 21... Bg6 {[%clk 0:01:53.5]} 22.
f3 {[%clk 0:01:06.3]} 22... Be3+ {[%clk 0:01:50]} 23. Kd1 {[%clk 0:01:04.5]}
23... Bd4 {[%clk 0:01:41.3]} 24. Ne2 {[%clk 0:01:02.4]} 24... Bb6 {[%clk
0:01:40.9]} 25. Nf4 {[%clk 0:01:01.1]} 25... Re3 {[%clk 0:01:38.3]} 26. Nxg6+
{[%clk 0:00:59.7]} 26... hxg6 {[%clk 0:01:39.2]} 27. Bd3 {[%clk 0:00:56.6]}
27... a5 {[%clk 0:01:37.6]} 28. Be1 {[%clk 0:00:49.8]} 28... axb4 {[%clk
0:01:36.7]} 29. axb4 {[%clk 0:00:47.5]} 29... Bd4 {[%clk 0:01:11.9]} 30. Kd2
{[%clk 0:00:46.2]} 30... R3e7 {[%clk 0:00:44.2]} 31. Bg3 {[%clk 0:00:45.9]}
31... Ra7 {[%clk 0:00:40.4]} 32. h4 {[%clk 0:00:42.1]} 32... Ra3 {[%clk
0:00:40]} 33. Bd6+ {[%clk 0:00:41]} 33... Kg8 {[%clk 0:00:39.9]} 34. c4 {[%clk
0:00:26.6]} 34... Ra2+ {[%clk 0:00:34.7]} 35. Bc2 {[%clk 0:00:25.9]} 35... dxc4
{[%clk 0:00:35.3]} 36. h5 {[%clk 0:00:23.8]} 36... gxh5 {[%clk 0:00:33.6]} 37.
Rxh5 {[%clk 0:00:23.3]} 37... g6 {[%clk 0:00:34.5]} 38. Rh4 {[%clk 0:00:21.8]}
38... c3+ {[%clk 0:00:30.1]} 39. Kd3 {[%clk 0:00:20.2]} 39... Bf6 {[%clk
0:00:30.7]} 40. Rc4 {[%clk 0:00:16.1]} 40... Ra6 {[%clk 0:00:25]} 41. Bb3 {[%clk
0:00:14.8]} 41... Rd8 {[%clk 0:00:24.9]} 0-1

[Event "*** Titled Tuesday Blitz"]
[Site "Chess.com"]
[Date "2020.12.01"]
[Round "1"]
[White "BAS8892"]
[Black "ljuks68"]
[Result "1/2-1/2"]
[WhiteElo "2715"]
[BlackElo "2382"]
[TimeControl "180+1"]
[EndTime "10:07:16 PST"]
[Termination "Game drawn by repetition"]

1. d4 {[%clk 0:03:00.9]} 1... d5 {[%clk 0:02:57.5]} 2. Nf3 {[%clk 0:02:58.9]}
2... Nf6 {[%clk 0:02:56.6]} 3. e3 {[%clk 0:02:59.3]} 3... c5 {[%clk 0:02:56.1]}
4. c4 {[%clk 0:02:55.5]} 4... cxd4 {[%clk 0:02:55.3]} 5. exd4 {[%clk 0:02:55.1]}
5... Nc6 {[%clk 0:02:55.5]} 6. Nc3 {[%clk 0:02:54.8]} 6... e6 {[%clk 0:02:54.7]}
7. a3 {[%clk 0:02:52.9]} 7... Be7 {[%clk 0:02:50.7]} 8. Bg5 {[%clk 0:02:52.1]}
8... O-O {[%clk 0:02:49.7]} 9. Be2 {[%clk 0:02:52.2]} 9... b6 {[%clk 0:02:48.3]}
10. O-O {[%clk 0:02:51]} 10... Bb7 {[%clk 0:02:48.1]} 11. Re1 {[%clk 0:02:46.2]}
11... Rc8 {[%clk 0:02:41.2]} 12. Bxf6 {[%clk 0:02:38.7]} 12... Bxf6 {[%clk
0:02:38.6]} 13. cxd5 {[%clk 0:02:38.8]} 13... exd5 {[%clk 0:02:37.1]} 14. Bf1
{[%clk 0:02:37.4]} 14... Qd6 {[%clk 0:02:22.6]} 15. g3 {[%clk 0:02:35.6]} 15...
Rfd8 {[%clk 0:02:17.6]} 16. Bg2 {[%clk 0:02:34.5]} 16... Na5 {[%clk 0:02:17.5]}
17. Ne5 {[%clk 0:02:33.4]} 17... Nc4 {[%clk 0:02:10.7]} 18. Qe2 {[%clk
0:02:22.9]} 18... a6 {[%clk 0:01:39]} 19. Rac1 {[%clk 0:02:10.3]} 19... b5
{[%clk 0:01:31.3]} 20. f4 {[%clk 0:02:09.6]} 20... Qb6 {[%clk 0:01:22.6]} 21.
Qf2 {[%clk 0:02:09.2]} 21... h6 {[%clk 0:01:09]} 22. g4 {[%clk 0:02:07.7]} 22...
g6 {[%clk 0:01:05.1]} 23. h4 {[%clk 0:02:07.1]} 23... Bg7 {[%clk 0:01:02.2]} 24.
g5 {[%clk 0:02:07.2]} 24... h5 {[%clk 0:01:00.6]} 25. f5 {[%clk 0:01:49.6]}
25... Bxe5 {[%clk 0:00:55.5]} 26. dxe5 {[%clk 0:01:48.4]} 26... Qxf2+ {[%clk
0:00:54.6]} 27. Kxf2 {[%clk 0:01:48.6]} 27... Nxb2 {[%clk 0:00:55.1]} 28. Bf1
{[%clk 0:01:37.6]} 28... d4 {[%clk 0:00:51.9]} 29. Ne4 {[%clk 0:01:32.8]} 29...
Rxc1 {[%clk 0:00:39.9]} 30. Nf6+ {[%clk 0:01:32]} 30... Kg7 {[%clk 0:00:38.1]}
31. Rxc1 {[%clk 0:01:32]} 31... d3 {[%clk 0:00:38.2]} 32. Rc7 {[%clk 0:01:31.5]}
32... d2 {[%clk 0:00:34.3]} 33. Be2 {[%clk 0:01:31.6]} 33... Nd3+ {[%clk
0:00:15.7]} 34. Ke3 {[%clk 0:01:25.5]} 34... Nxe5 {[%clk 0:00:14.1]} 35. fxg6
{[%clk 0:01:18]} 35... Bf3 {[%clk 0:00:09.4]} 36. gxf7 {[%clk 0:00:48.4]} 36...
Bxe2 {[%clk 0:00:06.3]} 37. f8=Q+ {[%clk 0:00:39.1]} 37... Kxf8 {[%clk
0:00:05.7]} 38. Nh7+ {[%clk 0:00:38.8]} 38... Kg8 {[%clk 0:00:05.5]} 39. Nf6+
{[%clk 0:00:38.7]} 39... Kf8 {[%clk 0:00:05.8]} 40. g6 {[%clk 0:00:35.6]} 40...
Nxg6 {[%clk 0:00:04.7]} 41. Nh7+ {[%clk 0:00:35.6]} 41... Kg8 {[%clk 0:00:04.5]}
42. Nf6+ {[%clk 0:00:35.7]} 42... Kf8 {[%clk 0:00:04.6]} 43. Nh7+ {[%clk
0:00:36]} 43... Kg8 {[%clk 0:00:04.8]} 44. Nf6+ {[%clk 0:00:36.4]} 44... Kf8
{[%clk 0:00:04.9]} 1/2-1/2

[Event "*** Titled Tuesday Blitz"]
[Site "Chess.com"]
[Date "2020.12.01"]
[Round "1"]
[White "Joshukid"]
[Black "StockholmMissile"]
[Result "0-1"]
[WhiteElo "2663"]
[BlackElo "2357"]
[TimeControl "180+1"]
[EndTime "10:07:18 PST"]
[Termination "StockholmMissile won by resignation"]

1. Nf3 {[%clk 0:03:00.4]} 1... d5 {[%clk 0:02:57.2]} 2. c4 {[%clk 0:03:00.2]}
2... d4 {[%clk 0:02:56.3]} 3. b4 {[%clk 0:03:00.5]} 3... Bg4 {[%clk 0:02:52.4]}
4. Qb3 {[%clk 0:03:00.5]} 4... Bxf3 {[%clk 0:02:47.8]} 5. Qxf3 {[%clk
0:03:00.5]} 5... c6 {[%clk 0:02:45.7]} 6. Qb3 {[%clk 0:02:45.4]} 6... e5 {[%clk
0:02:43.2]} 7. g3 {[%clk 0:02:44.2]} 7... Nd7 {[%clk 0:02:23.4]} 8. Bg2 {[%clk
0:02:43.9]} 8... a5 {[%clk 0:02:09.4]} 9. b5 {[%clk 0:02:40]} 9... Nc5 {[%clk
0:02:08.6]} 10. Qd1 {[%clk 0:02:35.6]} 10... Qc7 {[%clk 0:02:07]} 11. O-O {[%clk
0:02:33.6]} 11... Nf6 {[%clk 0:02:05]} 12. d3 {[%clk 0:02:32.4]} 12... Rd8
{[%clk 0:01:58]} 13. a4 {[%clk 0:02:31.3]} 13... Be7 {[%clk 0:01:56.8]} 14. Nd2
{[%clk 0:02:28.7]} 14... O-O {[%clk 0:01:56]} 15. Nb3 {[%clk 0:02:23.1]} 15...
Nfd7 {[%clk 0:01:42.1]} 16. Ba3 {[%clk 0:02:11.6]} 16... Rfe8 {[%clk 0:01:27]}
17. Qc2 {[%clk 0:02:01.8]} 17... Nxb3 {[%clk 0:01:15.9]} 18. Qxb3 {[%clk
0:02:02.7]} 18... Bxa3 {[%clk 0:01:14.2]} 19. Qxa3 {[%clk 0:02:02.1]} 19... c5
{[%clk 0:01:09.2]} 20. Rab1 {[%clk 0:02:00]} 20... b6 {[%clk 0:01:04.4]} 21. e3
{[%clk 0:02:00.6]} 21... dxe3 {[%clk 0:01:00.3]} 22. fxe3 {[%clk 0:02:01.5]}
22... Nf6 {[%clk 0:01:00.3]} 23. Rxf6 {[%clk 0:01:54.9]} 23... gxf6 {[%clk
0:01:01.2]} 24. Bd5 {[%clk 0:01:55.3]} 24... Rxd5 {[%clk 0:00:51.4]} 25. cxd5
{[%clk 0:01:56.2]} 25... e4 {[%clk 0:00:52]} 26. Rf1 {[%clk 0:01:53.8]} 26...
Qe5 {[%clk 0:00:44.6]} 27. Qb3 {[%clk 0:01:27]} 27... Kg7 {[%clk 0:00:43.3]} 28.
Re1 {[%clk 0:01:04.6]} 28... f5 {[%clk 0:00:42.1]} 29. dxe4 {[%clk 0:01:02.2]}
29... Qxe4 {[%clk 0:00:38.8]} 30. Kf2 {[%clk 0:01:00.8]} 30... Kg6 {[%clk
0:00:36.6]} 31. Rd1 {[%clk 0:01:00.2]} 31... Rd8 {[%clk 0:00:26.8]} 32. d6
{[%clk 0:00:59.8]} 32... Rd7 {[%clk 0:00:23.9]} 33. Rd2 {[%clk 0:00:49.1]} 33...
Qb4 {[%clk 0:00:20.6]} 34. Qd1 {[%clk 0:00:48.2]} 34... c4 {[%clk 0:00:17.8]}
35. e4 {[%clk 0:00:46.7]} 35... c3 {[%clk 0:00:16.1]} 36. exf5+ {[%clk
0:00:43.3]} 36... Kf6 {[%clk 0:00:16.4]} 37. Rd5 {[%clk 0:00:38.5]} 37... Qb2+
{[%clk 0:00:13.8]} 38. Kf3 {[%clk 0:00:37]} 38... c2 {[%clk 0:00:13.9]} 39. Qd2
{[%clk 0:00:34.2]} 39... c1=Q {[%clk 0:00:10.7]} 0-1

[Event "*** Titled Tuesday Blitz"]
[Site "Chess.com"]
[Date "2020.12.01"]
[Round "1"]
[White "malakismayil"]
[Black "Borsuk_Konstantin"]
[Result "0-1"]
[WhiteElo "2269"]
[BlackElo "2578"]
[TimeControl "180+1"]
[EndTime "10:07:19 PST"]
[Termination "Borsuk_Konstantin won on time"]

1. e4 {[%clk 0:03:00.9]} 1... e6 {[%clk 0:02:59.6]} 2. d4 {[%clk 0:03:00]} 2...
d5 {[%clk 0:02:59.9]} 3. Nd2 {[%clk 0:02:59.5]} 3... Nf6 {[%clk 0:02:59.6]} 4.
e5 {[%clk 0:02:50.5]} 4... Nfd7 {[%clk 0:02:59.2]} 5. c3 {[%clk 0:02:50]} 5...
c5 {[%clk 0:02:58.9]} 6. Bd3 {[%clk 0:02:50.1]} 6... Nc6 {[%clk 0:02:58.5]} 7.
Ne2 {[%clk 0:02:49.3]} 7... b6 {[%clk 0:02:58.2]} 8. O-O {[%clk 0:02:48.2]} 8...
cxd4 {[%clk 0:02:58.6]} 9. cxd4 {[%clk 0:02:47.8]} 9... Nb4 {[%clk 0:02:59.2]}
10. Bb1 {[%clk 0:02:46.2]} 10... Ba6 {[%clk 0:02:59.8]} 11. Nf3 {[%clk
0:02:38.7]} 11... Qc7 {[%clk 0:02:58.4]} 12. a3 {[%clk 0:02:37.5]} 12... Nc6
{[%clk 0:02:57.8]} 13. Re1 {[%clk 0:02:36]} 13... h6 {[%clk 0:02:53.8]} 14. Be3
{[%clk 0:02:29.5]} 14... Na5 {[%clk 0:02:47.2]} 15. Ba2 {[%clk 0:01:58.1]} 15...
Bc4 {[%clk 0:02:39.3]} 16. Rc1 {[%clk 0:01:44.8]} 16... Qb7 {[%clk 0:02:38.8]}
17. b3 {[%clk 0:01:42.9]} 17... Bxe2 {[%clk 0:02:28]} 18. Qxe2 {[%clk
0:01:38.8]} 18... Bxa3 {[%clk 0:02:27.7]} 19. Rc2 {[%clk 0:01:39]} 19... a6
{[%clk 0:02:18.2]} 20. Qd3 {[%clk 0:01:37.3]} 20... Nc6 {[%clk 0:02:14.2]} 21.
Bd2 {[%clk 0:01:29.4]} 21... Rc8 {[%clk 0:01:58.1]} 22. Bc3 {[%clk 0:01:20.1]}
22... Bb4 {[%clk 0:01:47.5]} 23. Bb1 {[%clk 0:01:14.2]} 23... Bxc3 {[%clk
0:01:38.9]} 24. Qxc3 {[%clk 0:00:56.1]} 24... Na7 {[%clk 0:01:37.4]} 25. Qd3
{[%clk 0:00:54.6]} 25... Ke7 {[%clk 0:01:30.1]} 26. Rec1 {[%clk 0:00:48.1]}
26... Nb5 {[%clk 0:01:27]} 27. h4 {[%clk 0:00:40.5]} 27... Na3 {[%clk
0:01:25.4]} 28. Rc3 {[%clk 0:00:26.6]} 28... a5 {[%clk 0:01:14.3]} 29. Nd2
{[%clk 0:00:23.2]} 29... Rxc3 {[%clk 0:01:10.8]} 30. Rxc3 {[%clk 0:00:24.1]}
30... Rc8 {[%clk 0:01:10.2]} 31. Bc2 {[%clk 0:00:19.7]} 31... Rxc3 {[%clk
0:00:58.3]} 32. Qxc3 {[%clk 0:00:19.2]} 32... Nb5 {[%clk 0:00:58.8]} 33. Qd3
{[%clk 0:00:18.3]} 33... Qc6 {[%clk 0:00:59.4]} 34. Nb1 {[%clk 0:00:15.9]} 34...
Nxd4 {[%clk 0:00:55.8]} 35. Qxd4 {[%clk 0:00:14.2]} 35... Qxc2 {[%clk
0:00:55.7]} 36. Nc3 {[%clk 0:00:09.9]} 36... Qxb3 {[%clk 0:00:52.8]} 37. h5
{[%clk 0:00:10]} 37... Qc4 {[%clk 0:00:52.3]} 38. Qd2 {[%clk 0:00:08.4]} 38...
a4 {[%clk 0:00:49]} 39. Qb2 {[%clk 0:00:06.2]} 39... Qb3 {[%clk 0:00:46.9]} 40.
Qa1 {[%clk 0:00:05.1]} 40... a3 {[%clk 0:00:46.1]} 41. Nb1 {[%clk 0:00:03.6]}
41... Nxe5 {[%clk 0:00:40.4]} 42. Nxa3 {[%clk 0:00:01.7]} 42... Nd3 {[%clk
0:00:37.5]} 0-1

[Event "*** Titled Tuesday Blitz"]
[Site "Chess.com"]
[Date "2020.12.01"]
[Round "1"]
[White "Deepweb2020"]
[Black "Meri-Arabidze"]
[Result "0-1"]
[WhiteElo "2299"]
[BlackElo "2617"]
[TimeControl "180+1"]
[EndTime "10:07:20 PST"]
[Termination "Meri-Arabidze won by resignation"]

1. d4 {[%clk 0:02:59.3]} 1... d5 {[%clk 0:03:00.1]} 2. c4 {[%clk 0:02:54.1]}
2... e6 {[%clk 0:03:00.4]} 3. Nf3 {[%clk 0:02:52.4]} 3... Nf6 {[%clk 0:03:00.6]}
4. g3 {[%clk 0:02:51.6]} 4... Bb4+ {[%clk 0:03:00]} 5. Bd2 {[%clk 0:02:50.5]}
5... Be7 {[%clk 0:03:00.5]} 6. Bg2 {[%clk 0:02:50.6]} 6... O-O {[%clk
0:03:01.2]} 7. Qc2 {[%clk 0:02:50.5]} 7... Nbd7 {[%clk 0:03:01.6]} 8. h4 {[%clk
0:02:50.4]} 8... c6 {[%clk 0:02:56.1]} 9. Ng5 {[%clk 0:02:42.4]} 9... h6 {[%clk
0:02:34.8]} 10. Nc3 {[%clk 0:02:42.1]} 10... b6 {[%clk 0:02:13.9]} 11. e4 {[%clk
0:02:39.2]} 11... dxe4 {[%clk 0:02:05.9]} 12. Ncxe4 {[%clk 0:02:28.4]} 12... Bb7
{[%clk 0:02:05.9]} 13. Nxf6+ {[%clk 0:02:06.4]} 13... Nxf6 {[%clk 0:02:05.6]}
14. O-O-O {[%clk 0:02:02.8]} 14... Qc8 {[%clk 0:01:55.2]} 15. Bc3 {[%clk
0:01:40.6]} 15... g6 {[%clk 0:01:48.1]} 16. Rde1 {[%clk 0:01:24.8]} 16... hxg5
{[%clk 0:01:07.4]} 17. hxg5 {[%clk 0:01:24.5]} 17... Nh5 {[%clk 0:01:07.5]} 18.
f4 {[%clk 0:00:47.8]} 18... c5 {[%clk 0:01:02.3]} 19. d5 {[%clk 0:00:43.4]}
19... e5 {[%clk 0:00:18.2]} 20. Bxe5 {[%clk 0:00:31.1]} 20... Qg4 {[%clk
0:00:17.6]} 21. Qf2 {[%clk 0:00:22.1]} 21... f6 {[%clk 0:00:14.5]} 22. gxf6
{[%clk 0:00:20.5]} 22... Bxf6 {[%clk 0:00:13.9]} 23. Rh3 {[%clk 0:00:14.8]}
23... Bxe5 {[%clk 0:00:13.4]} 24. Rxe5 {[%clk 0:00:15.7]} 24... Rae8 {[%clk
0:00:10.7]} 25. Bf3 {[%clk 0:00:14.4]} 25... Qxh3 {[%clk 0:00:10.2]} 26. Rg5
{[%clk 0:00:12.9]} 26... Kh7 {[%clk 0:00:05.5]} 27. Be4 {[%clk 0:00:12.8]} 27...
Rxe4 {[%clk 0:00:05]} 28. Qc2 {[%clk 0:00:12.1]} 28... Rfe8 {[%clk 0:00:04]} 29.
b3 {[%clk 0:00:10.9]} 29... Re1+ {[%clk 0:00:04.2]} 30. Kb2 {[%clk 0:00:10.8]}
30... R1e2 {[%clk 0:00:04.8]} 31. Ka3 {[%clk 0:00:09.9]} 31... Rxc2 {[%clk
0:00:05]} 32. d6 {[%clk 0:00:10.8]} 32... Ree2 {[%clk 0:00:04.9]} 0-1

[Event "*** Titled Tuesday Blitz"]
[Site "Chess.com"]
[Date "2020.12.01"]
[Round "1"]
[White "Chopper1905"]
[Black "renehp"]
[Result "1-0"]
[WhiteElo "2979"]
[BlackElo "2447"]
[TimeControl "180+1"]
[EndTime "10:07:23 PST"]
[Termination "Chopper1905 won on time"]

1. e4 {[%clk 0:03:00.9]} 1... c5 {[%clk 0:02:59.5]} 2. Nf3 {[%clk 0:03:01.1]}
2... d6 {[%clk 0:02:59.6]} 3. d4 {[%clk 0:03:00.9]} 3... cxd4 {[%clk 0:02:59.7]}
4. Nxd4 {[%clk 0:03:01.8]} 4... Nf6 {[%clk 0:03:00]} 5. Nc3 {[%clk 0:03:02.3]}
5... a6 {[%clk 0:02:54.3]} 6. Be3 {[%clk 0:03:02.5]} 6... Ng4 {[%clk 0:02:53.2]}
7. Bg5 {[%clk 0:03:02.5]} 7... h6 {[%clk 0:02:51.2]} 8. Bc1 {[%clk 0:03:02.2]}
8... Nc6 {[%clk 0:02:42.5]} 9. Nxc6 {[%clk 0:02:51.1]} 9... bxc6 {[%clk
0:02:42.2]} 10. h3 {[%clk 0:02:47.5]} 10... Nf6 {[%clk 0:02:41.9]} 11. Bc4
{[%clk 0:02:47.2]} 11... e6 {[%clk 0:02:41]} 12. O-O {[%clk 0:02:46.3]} 12...
Be7 {[%clk 0:02:40.6]} 13. Bb3 {[%clk 0:02:43.2]} 13... O-O {[%clk 0:02:40.4]}
14. Qe2 {[%clk 0:02:40]} 14... a5 {[%clk 0:02:38.2]} 15. Rd1 {[%clk 0:02:40.3]}
15... Qc7 {[%clk 0:02:38]} 16. Na4 {[%clk 0:02:28.1]} 16... d5 {[%clk
0:02:32.9]} 17. e5 {[%clk 0:02:23]} 17... Nd7 {[%clk 0:02:32.6]} 18. Bf4 {[%clk
0:02:23.1]} 18... Rb8 {[%clk 0:02:30.5]} 19. Rac1 {[%clk 0:02:20.6]} 19... Rb4
{[%clk 0:02:28.3]} 20. c4 {[%clk 0:02:18.8]} 20... Ba6 {[%clk 0:02:25.4]} 21.
Bd2 {[%clk 0:02:18.4]} 21... Bxc4 {[%clk 0:02:02]} 22. Bxc4 {[%clk 0:02:16]}
22... Rxa4 {[%clk 0:01:56.7]} 23. Bb5 {[%clk 0:02:09.3]} 23... Re4 {[%clk
0:01:45.7]} 24. Qf1 {[%clk 0:02:07.8]} 24... Nc5 {[%clk 0:01:33.7]} 25. Be2
{[%clk 0:02:00.6]} 25... Qxe5 {[%clk 0:01:28.8]} 26. Bf3 {[%clk 0:01:55.7]}
26... Qxb2 {[%clk 0:01:07.8]} 27. Bxe4 {[%clk 0:01:37.8]} 27... Nxe4 {[%clk
0:01:08.7]} 28. Be3 {[%clk 0:01:38.2]} 28... c5 {[%clk 0:01:07.2]} 29. Rb1
{[%clk 0:01:30.9]} 29... Qe5 {[%clk 0:01:00.4]} 30. Re1 {[%clk 0:01:24.7]} 30...
Bd6 {[%clk 0:00:43.3]} 31. g3 {[%clk 0:01:18.8]} 31... Qf5 {[%clk 0:00:38.5]}
32. Qg2 {[%clk 0:01:15]} 32... Nc3 {[%clk 0:00:31.4]} 33. Rb6 {[%clk 0:01:14.8]}
33... Rd8 {[%clk 0:00:22.3]} 34. Bd2 {[%clk 0:01:14.6]} 34... Ne4 {[%clk
0:00:21.3]} 35. Bxa5 {[%clk 0:01:13.5]} 35... c4 {[%clk 0:00:20.9]} 36. Rc6
{[%clk 0:01:05.9]} 36... Ra8 {[%clk 0:00:17.9]} 37. Bb6 {[%clk 0:01:06]} 37...
Be7 {[%clk 0:00:08.3]} 38. g4 {[%clk 0:00:52.4]} 38... Qf6 {[%clk 0:00:06.7]}
39. Re2 {[%clk 0:00:27.1]} 1-0

[Event "*** Titled Tuesday Blitz"]
[Site "Chess.com"]
[Date "2020.12.01"]
[Round "1"]
[White "amatatanav"]
[Black "Aleksey_Sorokin"]
[Result "1/2-1/2"]
[WhiteElo "2420"]
[BlackElo "2828"]
[TimeControl "180+1"]
[EndTime "10:07:23 PST"]
[Termination "Game drawn by agreement"]

1. e4 {[%clk 0:03:00.9]} 1... c6 {[%clk 0:02:59.9]} 2. Nc3 {[%clk 0:03:00.1]}
2... d5 {[%clk 0:03:00.8]} 3. Nf3 {[%clk 0:03:00.6]} 3... dxe4 {[%clk
0:02:59.8]} 4. Nxe4 {[%clk 0:03:00.5]} 4... Nf6 {[%clk 0:03:00.7]} 5. Qe2 {[%clk
0:02:57.8]} 5... Nxe4 {[%clk 0:03:00.3]} 6. Qxe4 {[%clk 0:02:58.7]} 6... Qd5
{[%clk 0:03:00.6]} 7. Qf4 {[%clk 0:02:38.1]} 7... Qf5 {[%clk 0:02:58.3]} 8. d3
{[%clk 0:02:29.3]} 8... Qxf4 {[%clk 0:02:56.1]} 9. Bxf4 {[%clk 0:02:30.2]} 9...
Bg4 {[%clk 0:02:55.6]} 10. Be2 {[%clk 0:02:28.5]} 10... Nd7 {[%clk 0:02:54.9]}
11. h3 {[%clk 0:02:28.3]} 11... Bh5 {[%clk 0:02:54.1]} 12. g4 {[%clk 0:02:08.6]}
12... Bg6 {[%clk 0:02:50.8]} 13. Nh4 {[%clk 0:02:08.8]} 13... e5 {[%clk
0:02:48.3]} 14. Bg3 {[%clk 0:02:02.9]} 14... Be7 {[%clk 0:02:43.5]} 15. O-O-O
{[%clk 0:01:57.7]} 15... O-O-O {[%clk 0:02:33.6]} 16. Rde1 {[%clk 0:01:56.9]}
16... Bxh4 {[%clk 0:02:31.2]} 17. Bxh4 {[%clk 0:01:56.9]} 17... f6 {[%clk
0:02:31.2]} 18. Bg3 {[%clk 0:01:52.1]} 18... Rhe8 {[%clk 0:02:30.3]} 19. f4
{[%clk 0:01:49.6]} 19... exf4 {[%clk 0:02:24.7]} 20. Bxf4 {[%clk 0:01:49.7]}
20... Nc5 {[%clk 0:02:24.9]} 21. Bd2 {[%clk 0:01:06.1]} 21... Ne6 {[%clk
0:02:22.8]} 22. Bf3 {[%clk 0:01:02.1]} 22... Nd4 {[%clk 0:02:22.2]} 23. Bg2
{[%clk 0:00:57]} 23... Kd7 {[%clk 0:02:17.2]} 24. Kd1 {[%clk 0:00:55.4]} 24...
Bf7 {[%clk 0:02:16]} 25. b3 {[%clk 0:00:50.5]} 25... Bd5 {[%clk 0:02:14.6]} 26.
Bxd5 {[%clk 0:00:49.6]} 26... cxd5 {[%clk 0:02:15.5]} 27. c3 {[%clk 0:00:33.8]}
27... Nf3 {[%clk 0:02:14.3]} 28. Rxe8 {[%clk 0:00:25.4]} 28... Rxe8 {[%clk
0:02:15.2]} 29. Rf1 {[%clk 0:00:23.3]} 29... Ne5 {[%clk 0:02:03]} 30. Kc2 {[%clk
0:00:23]} 30... h6 {[%clk 0:01:59.9]} 31. Re1 {[%clk 0:00:22.2]} 31... a6 {[%clk
0:01:57.7]} 32. Bf4 {[%clk 0:00:21.6]} 32... g5 {[%clk 0:01:49.9]} 33. Bxe5
{[%clk 0:00:21]} 33... Rxe5 {[%clk 0:01:49.4]} 34. Rxe5 {[%clk 0:00:19.7]} 34...
fxe5 {[%clk 0:01:49.4]} 35. Kd2 {[%clk 0:00:19.9]} 35... Kd6 {[%clk 0:01:44.8]}
36. Ke3 {[%clk 0:00:20]} 36... b5 {[%clk 0:01:44.8]} 37. a3 {[%clk 0:00:17.9]}
37... a5 {[%clk 0:01:42.7]} 38. Kf3 {[%clk 0:00:16.8]} 38... Kc5 {[%clk
0:01:34.9]} 39. Ke3 {[%clk 0:00:14.1]} 39... Kc6 {[%clk 0:01:28.9]} 40. Kf3
{[%clk 0:00:13.6]} 40... Kd6 {[%clk 0:01:28.9]} 41. Ke3 {[%clk 0:00:13.8]} 41...
Kc5 {[%clk 0:01:28.8]} 42. Kf3 {[%clk 0:00:09.7]} 42... b4 {[%clk 0:01:06.9]}
43. cxb4+ {[%clk 0:00:08.3]} 43... axb4 {[%clk 0:01:07.1]} 44. a4 {[%clk
0:00:09]} 44... Kd4 {[%clk 0:01:07.1]} 45. Ke2 {[%clk 0:00:08.3]} 45... Kc5
{[%clk 0:00:44.7]} 46. Ke3 {[%clk 0:00:08.4]} 46... Kc6 {[%clk 0:00:44.3]} 47.
Kf3 {[%clk 0:00:08.4]} 47... Kb6 {[%clk 0:00:43.7]} 48. Ke3 {[%clk 0:00:08.6]}
48... Ka5 {[%clk 0:00:43.2]} 49. Kf3 {[%clk 0:00:08.1]} 49... Kb6 {[%clk
0:00:43]} 50. Ke3 {[%clk 0:00:08.5]} 50... Kc6 {[%clk 0:00:43.3]} 51. Kf3 {[%clk
0:00:08.7]} 51... Kd6 {[%clk 0:00:42.6]} 52. Ke3 {[%clk 0:00:09.1]} 52... Kc7
{[%clk 0:00:42.1]} 1/2-1/2